[Event "Live Chess"]
[Site "Chess.com"]
[Date "2024.06.02"]
[Round "-"]
[White "NAZRIZ1977"]
[Black "McFim"]
[Result "0-1"]
[WhiteElo "2086"]
[BlackElo "1747"]
[TimeControl "300"]
[EndTime "6:05:04 PDT"]
[Termination "McFim won by resignation"]

1. d4 {[%clk 0:04:55.4]} 1... d5 {[%clk 0:04:58.6]} 2. Nf3 {[%clk 0:04:54]} 2...
c6 {[%clk 0:04:57.6]} 3. e3 {[%clk 0:04:53]} 3... a6 {[%clk 0:04:56.4]} 4. c4
{[%clk 0:04:51]} 4... Nf6 {[%clk 0:04:54.1]} 5. Nc3 {[%clk 0:04:50]} 5... e6
{[%clk 0:04:52.4]} 6. Bd3 {[%clk 0:04:48.6]} 6... Bd6 {[%clk 0:04:51]} 7. O-O
{[%clk 0:04:46.1]} 7... O-O {[%clk 0:04:49.9]} 8. e4 {[%clk 0:04:45.2]} 8...
dxe4 {[%clk 0:04:48.6]} 9. Nxe4 {[%clk 0:04:44.3]} 9... Nxe4 {[%clk 0:04:48.2]}
10. Bxe4 {[%clk 0:04:43.4]} 10... Nd7 {[%clk 0:04:47.2]} 11. Bg5 {[%clk
0:04:10.4]} 11... Be7 {[%clk 0:04:40.4]} 12. Bf4 {[%clk 0:04:07.8]} 12... Nf6
{[%clk 0:04:38.7]} 13. Bc2 {[%clk 0:04:05.9]} 13... h6 {[%clk 0:04:36]} 14. Qd2
{[%clk 0:04:03.5]} 14... Nh7 {[%clk 0:04:30.3]} 15. Bxh6 {[%clk 0:03:58.9]}
15... gxh6 {[%clk 0:04:28.6]} 16. Qxh6 {[%clk 0:03:58.8]} 16... f5 {[%clk
0:04:27.1]} 17. Ne5 {[%clk 0:03:53.8]} 17... Bf6 {[%clk 0:04:12.3]} 18. Rfe1
{[%clk 0:03:24.5]} 18... Bg7 {[%clk 0:04:10.2]} 19. Qh3 {[%clk 0:03:10.5]} 19...
Qxd4 {[%clk 0:03:59.9]} 20. Rad1 {[%clk 0:02:57.2]} 20... Qxb2 {[%clk
0:03:56.9]} 21. Ng6 {[%clk 0:02:56]} 21... Re8 {[%clk 0:03:51.1]} 22. Bxf5
{[%clk 0:02:42.8]} 22... Qf6 {[%clk 0:03:45.7]} 23. Bb1 {[%clk 0:02:30]} 23...
e5 {[%clk 0:03:34.3]} 24. Qg3 {[%clk 0:01:56.3]} 24... Bf5 {[%clk 0:03:22.8]}
25. Bxf5 {[%clk 0:01:51.8]} 25... Qxf5 {[%clk 0:03:18.8]} 26. Rd7 {[%clk
0:01:49.9]} 26... Qxd7 {[%clk 0:03:13.5]} 0-1

[Event "Live Chess"]
[Site "Chess.com"]
[Date "2024.06.02"]
[Round "-"]
[White "imchessive"]
[Black "Ferrarifan27"]
[Result "0-1"]
[WhiteElo "1589"]
[BlackElo "2146"]
[TimeControl "300"]
[EndTime "6:06:12 PDT"]
[Termination "Ferrarifan27 won by checkmate"]

1. d4 {[%clk 0:04:58.3]} 1... Nf6 {[%clk 0:04:58.2]} 2. c4 {[%clk 0:04:56.6]}
2... e6 {[%clk 0:04:56.8]} 3. Nf3 {[%clk 0:04:54.9]} 3... b6 {[%clk 0:04:54.2]}
4. g3 {[%clk 0:04:53.5]} 4... Bb7 {[%clk 0:04:52]} 5. Bg2 {[%clk 0:04:52.8]}
5... Be7 {[%clk 0:04:47]} 6. Nc3 {[%clk 0:04:50.5]} 6... O-O {[%clk 0:04:41.6]}
7. O-O {[%clk 0:04:48.9]} 7... d5 {[%clk 0:04:40]} 8. Ne5 {[%clk 0:04:43.2]}
8... c6 {[%clk 0:04:28.9]} 9. Qa4 {[%clk 0:04:30.6]} 9... Nfd7 {[%clk
0:04:23.9]} 10. cxd5 {[%clk 0:04:22.7]} 10... Nxe5 {[%clk 0:04:19.3]} 11. dxe5
{[%clk 0:04:19.2]} 11... cxd5 {[%clk 0:04:13.3]} 12. Be3 {[%clk 0:04:02.4]}
12... Nc6 {[%clk 0:04:10.3]} 13. Rfd1 {[%clk 0:03:41.1]} 13... Nxe5 {[%clk
0:04:07.5]} 14. Bf4 {[%clk 0:03:24.7]} 14... Ng6 {[%clk 0:04:04.7]} 15. Nb5
{[%clk 0:03:17.5]} 15... Nxf4 {[%clk 0:04:01.6]} 16. Qxf4 {[%clk 0:03:15.9]}
16... a6 {[%clk 0:03:39.6]} 17. Nd4 {[%clk 0:02:51.3]} 17... Bd6 {[%clk
0:03:34.1]} 18. Qg4 {[%clk 0:02:37.6]} 18... Qe7 {[%clk 0:03:31]} 19. Rac1
{[%clk 0:02:33.2]} 19... Rac8 {[%clk 0:03:28.9]} 20. a3 {[%clk 0:02:28.6]} 20...
Rxc1 {[%clk 0:03:25.4]} 21. Rxc1 {[%clk 0:02:28.5]} 21... Rc8 {[%clk 0:03:23.8]}
22. Rxc8+ {[%clk 0:02:26.9]} 22... Bxc8 {[%clk 0:03:23.7]} 23. Bxd5 {[%clk
0:02:16.4]} 23... f5 {[%clk 0:03:22.7]} 24. Nxf5 {[%clk 0:01:58.6]} 24... Qc7
{[%clk 0:03:09.7]} 25. Nh6+ {[%clk 0:01:20.6]} 25... Kh8 {[%clk 0:03:04.2]} 26.
Bxe6 {[%clk 0:01:16.4]} 26... Bxe6 {[%clk 0:03:02.6]} 27. Qxe6 {[%clk
0:01:04.4]} 27... gxh6 {[%clk 0:03:01.1]} 28. Qxh6 {[%clk 0:01:02.5]} 28... Be5
{[%clk 0:02:56]} 29. f4 {[%clk 0:00:46.2]} 29... Bg7 {[%clk 0:02:48.3]} 30. Qe6
{[%clk 0:00:41.3]} 30... Qd8 {[%clk 0:02:27]} 31. b4 {[%clk 0:00:38.3]} 31... a5
{[%clk 0:02:22.3]} 32. e4 {[%clk 0:00:36.5]} 32... axb4 {[%clk 0:02:20.5]} 33.
axb4 {[%clk 0:00:35.4]} 33... Bc3 {[%clk 0:01:56.5]} 34. f5 {[%clk 0:00:31.4]}
34... Qd4+ {[%clk 0:01:52.4]} 35. Kg2 {[%clk 0:00:28.9]} 35... Qf6 {[%clk
0:01:40.9]} 36. Qe8+ {[%clk 0:00:27.1]} 36... Kg7 {[%clk 0:01:39.9]} 37. Qd7+
{[%clk 0:00:23.6]} 37... Qf7 {[%clk 0:01:37.2]} 38. Qc6 {[%clk 0:00:19.3]} 38...
Bd4 {[%clk 0:01:33.6]} 39. Kf3 {[%clk 0:00:16.7]} 39... Qb3+ {[%clk 0:01:30.6]}
40. Kf4 {[%clk 0:00:15.3]} 40... Qe3+ {[%clk 0:01:23.8]} 41. Kg4 {[%clk
0:00:14.2]} 41... Qe2+ {[%clk 0:01:22.4]} 42. Kh3 {[%clk 0:00:13.1]} 42... Qh5+
{[%clk 0:01:20.7]} 43. Kg2 {[%clk 0:00:12.3]} 43... Qf7 {[%clk 0:01:18.8]} 44.
g4 {[%clk 0:00:10.2]} 44... Qa2+ {[%clk 0:01:13.6]} 45. Kf3 {[%clk 0:00:09.1]}
45... Qf2# {[%clk 0:01:11.7]} 0-1

[Event "Live Chess"]
[Site "Chess.com"]
[Date "2024.06.02"]
[Round "-"]
[White "MagnersCarlsberg2870"]
[Black "Queensandpawns"]
[Result "0-1"]
[WhiteElo "1738"]
[BlackElo "2286"]
[TimeControl "300"]
[EndTime "6:06:12 PDT"]
[Termination "Queensandpawns won by resignation"]

1. Nf3 {[%clk 0:04:55.8]} 1... e5 {[%clk 0:04:59.8]} 2. Nxe5 {[%clk 0:04:54.3]}
2... Nc6 {[%clk 0:04:59.7]} 3. Nxc6 {[%clk 0:04:53]} 3... dxc6 {[%clk
0:04:59.6]} 4. e4 {[%clk 0:04:51]} 4... Nf6 {[%clk 0:04:58.3]} 5. Nc3 {[%clk
0:04:48]} 5... Bc5 {[%clk 0:04:57.9]} 6. Bc4 {[%clk 0:04:45.5]} 6... Qd4 {[%clk
0:04:50.1]} 7. Qe2 {[%clk 0:04:38.6]} 7... Ng4 {[%clk 0:04:42.1]} 8. O-O {[%clk
0:04:32.6]} 8... Qe5 {[%clk 0:04:19.9]} 9. g3 {[%clk 0:04:25]} 9... h5 {[%clk
0:04:18.7]} 10. Na4 {[%clk 0:04:12.6]} 10... h4 {[%clk 0:04:15.8]} 11. Nxc5
{[%clk 0:04:11.1]} 11... Qxc5 {[%clk 0:04:05.5]} 12. d3 {[%clk 0:04:05.5]} 12...
hxg3 {[%clk 0:04:03.8]} 13. hxg3 {[%clk 0:04:00.7]} 13... Qh5 {[%clk 0:04:01.8]}
0-1

[Event "Live Chess"]
[Site "Chess.com"]
[Date "2024.06.02"]
[Round "-"]
[White "Pablo_dmp"]
[Black "agamilewska"]
[Result "0-1"]
[WhiteElo "1980"]
[BlackElo "1781"]
[TimeControl "300"]
[EndTime "6:06:38 PDT"]
[Termination "agamilewska won by resignation"]

1. e4 {[%clk 0:04:59.6]} 1... e5 {[%clk 0:04:58.9]} 2. Nf3 {[%clk 0:04:58.9]}
2... Nc6 {[%clk 0:04:57.9]} 3. Bc4 {[%clk 0:04:58.5]} 3... Bc5 {[%clk
0:04:56.2]} 4. c3 {[%clk 0:04:57.5]} 4... h6 {[%clk 0:04:55.1]} 5. d4 {[%clk
0:04:57.4]} 5... exd4 {[%clk 0:04:54.2]} 6. cxd4 {[%clk 0:04:57.3]} 6... Bb4+
{[%clk 0:04:53.5]} 7. Bd2 {[%clk 0:04:56.2]} 7... Bxd2+ {[%clk 0:04:52.3]} 8.
Nbxd2 {[%clk 0:04:56.1]} 8... Nf6 {[%clk 0:04:51.6]} 9. e5 {[%clk 0:04:55.3]}
9... Nh7 {[%clk 0:04:48.9]} 10. O-O {[%clk 0:04:52.4]} 10... O-O {[%clk
0:04:47.7]} 11. Bd3 {[%clk 0:04:50.4]} 11... d5 {[%clk 0:04:43.2]} 12. Rc1
{[%clk 0:04:42.3]} 12... Bg4 {[%clk 0:04:41.5]} 13. h3 {[%clk 0:04:41.1]} 13...
Bh5 {[%clk 0:04:39.9]} 14. Qe2 {[%clk 0:04:36.4]} 14... Ng5 {[%clk 0:04:38.2]}
15. g4 {[%clk 0:04:32]} 15... Nxf3+ {[%clk 0:04:37.2]} 16. Nxf3 {[%clk 0:04:31]}
16... Bg6 {[%clk 0:04:33.5]} 17. Bxg6 {[%clk 0:04:28.9]} 17... fxg6 {[%clk
0:04:33.4]} 18. Qd3 {[%clk 0:04:27]} 18... Kh7 {[%clk 0:04:28]} 19. Nh4 {[%clk
0:04:25.8]} 19... Qxh4 {[%clk 0:04:25.9]} 20. f4 {[%clk 0:04:24]} 20... Rac8
{[%clk 0:03:54.1]} 21. f5 {[%clk 0:04:22.5]} 21... gxf5 {[%clk 0:03:51.7]} 22.
Rxf5 {[%clk 0:04:21.4]} 22... Kg8 {[%clk 0:03:40.8]} 23. Rcf1 {[%clk 0:04:17.2]}
23... Rxf5 {[%clk 0:03:35.9]} 24. Qxf5 {[%clk 0:04:14.8]} 24... Qg3+ {[%clk
0:03:26.2]} 25. Kh1 {[%clk 0:04:14]} 25... Rd8 {[%clk 0:03:22.3]} 26. e6 {[%clk
0:04:01.4]} 26... Qxh3+ {[%clk 0:03:00]} 27. Kg1 {[%clk 0:03:59.9]} 27... Qg3+
{[%clk 0:02:48.8]} 28. Kh1 {[%clk 0:03:58]} 28... Qh4+ {[%clk 0:02:48.1]} 29.
Kg1 {[%clk 0:03:56.5]} 29... Qe7 {[%clk 0:02:44.9]} 30. a3 {[%clk 0:03:45]}
30... Nxd4 {[%clk 0:02:43.2]} 31. Qg6 {[%clk 0:03:30.6]} 31... Ne2+ {[%clk
0:02:35.4]} 32. Kg2 {[%clk 0:03:28.4]} 32... Rf8 {[%clk 0:02:18.9]} 33. Rf5
{[%clk 0:03:13.2]} 33... Nf4+ {[%clk 0:02:07.8]} 34. Rxf4 {[%clk 0:03:11.1]}
34... Rxf4 {[%clk 0:02:07.2]} 0-1

[Event "Live Chess"]
[Site "Chess.com"]
[Date "2024.06.02"]
[Round "-"]
[White "PavelChernomordik"]
[Black "booktrunk"]
[Result "1-0"]
[WhiteElo "2507"]
[BlackElo "1494"]
[TimeControl "300"]
[EndTime "6:06:39 PDT"]
[Termination "PavelChernomordik won by resignation"]

1. e4 {[%clk 0:04:57]} 1... b6 {[%clk 0:04:56.4]} 2. d4 {[%clk 0:04:55.3]} 2...
h6 {[%clk 0:04:54]} 3. c4 {[%clk 0:04:52]} 3... Bb7 {[%clk 0:04:53.9]} 4. Nc3
{[%clk 0:04:50.5]} 4... e6 {[%clk 0:04:45]} 5. d5 {[%clk 0:04:43.3]} 5... exd5
{[%clk 0:04:40.5]} 6. cxd5 {[%clk 0:04:39.3]} 6... Nf6 {[%clk 0:04:37.2]} 7. e5
{[%clk 0:04:34.5]} 7... Nh7 {[%clk 0:04:32.2]} 8. Qh5 {[%clk 0:04:23.5]} 8...
Be7 {[%clk 0:04:18.3]} 9. f4 {[%clk 0:04:14.5]} 9... d6 {[%clk 0:04:12.6]} 10.
Be3 {[%clk 0:03:57.7]} 10... dxe5 {[%clk 0:04:05.9]} 11. fxe5 {[%clk 0:03:55.3]}
11... Bxd5 {[%clk 0:04:01.7]} 12. O-O-O {[%clk 0:03:52.7]} 12... O-O {[%clk
0:03:58.1]} 13. Nxd5 {[%clk 0:03:50.5]} 1-0

[Event "Live Chess"]
[Site "Chess.com"]
[Date "2024.06.02"]
[Round "-"]
[White "IgorSchukin"]
[Black "oscalik"]
[Result "1/2-1/2"]
[WhiteElo "1786"]
[BlackElo "2233"]
[TimeControl "300"]
[EndTime "6:06:56 PDT"]
[Termination "Game drawn by repetition"]

1. e4 {[%clk 0:04:58.3]} 1... c5 {[%clk 0:04:58.1]} 2. a3 {[%clk 0:04:57]} 2...
Nf6 {[%clk 0:04:47]} 3. Nc3 {[%clk 0:04:40.9]} 3... e6 {[%clk 0:04:41.4]} 4. Nf3
{[%clk 0:04:38.5]} 4... d5 {[%clk 0:04:33.6]} 5. e5 {[%clk 0:04:35.6]} 5... Nfd7
{[%clk 0:04:32.4]} 6. Bb5 {[%clk 0:04:33.3]} 6... Be7 {[%clk 0:04:26.6]} 7. O-O
{[%clk 0:04:30.7]} 7... O-O {[%clk 0:04:24.4]} 8. Re1 {[%clk 0:04:29.4]} 8... a6
{[%clk 0:04:22.9]} 9. Bxd7 {[%clk 0:04:27.1]} 9... Bxd7 {[%clk 0:04:21.8]} 10.
d4 {[%clk 0:04:25.3]} 10... Nc6 {[%clk 0:04:20.6]} 11. Ne2 {[%clk 0:04:11]}
11... f6 {[%clk 0:04:06.2]} 12. exf6 {[%clk 0:04:07.9]} 12... Bxf6 {[%clk
0:03:59.8]} 13. dxc5 {[%clk 0:04:04.6]} 13... b6 {[%clk 0:03:49.5]} 14. Ned4
{[%clk 0:03:52.4]} 14... Nxd4 {[%clk 0:03:45.1]} 15. Nxd4 {[%clk 0:03:50.9]}
15... bxc5 {[%clk 0:03:30.8]} 16. Nxe6 {[%clk 0:03:47.8]} 16... Bxe6 {[%clk
0:03:30.7]} 17. Rxe6 {[%clk 0:03:46]} 17... d4 {[%clk 0:03:22.8]} 18. Qd3 {[%clk
0:03:30.1]} 18... Qd5 {[%clk 0:03:12.4]} 19. Qe4 {[%clk 0:03:10.9]} 19... Qxe4
{[%clk 0:02:58.4]} 20. Rxe4 {[%clk 0:03:09.6]} 20... Rfe8 {[%clk 0:02:58.3]} 21.
Rxe8+ {[%clk 0:02:59.5]} 21... Rxe8 {[%clk 0:02:58.2]} 22. Bf4 {[%clk
0:02:58.2]} 22... Re2 {[%clk 0:02:55.7]} 23. Rc1 {[%clk 0:02:53.8]} 23... c4
{[%clk 0:02:47]} 24. Kf1 {[%clk 0:02:49.9]} 24... d3 {[%clk 0:02:45.5]} 25. cxd3
{[%clk 0:02:46.1]} 25... cxd3 {[%clk 0:02:45.4]} 26. Rd1 {[%clk 0:02:36.4]}
26... Re4 {[%clk 0:02:32.9]} 27. Be3 {[%clk 0:02:31.8]} 27... Bxb2 {[%clk
0:02:31.3]} 28. Rxd3 {[%clk 0:02:29.6]} 28... Ra4 {[%clk 0:02:29.6]} 29. Bc5
{[%clk 0:02:20.1]} 29... Kf7 {[%clk 0:02:25]} 30. Ke2 {[%clk 0:02:17.4]} 30...
Ke6 {[%clk 0:02:21.6]} 31. g4 {[%clk 0:02:08.1]} 31... Rxg4 {[%clk 0:02:16.7]}
32. Rd6+ {[%clk 0:02:03.5]} 32... Ke5 {[%clk 0:02:10.2]} 33. Rxa6 {[%clk
0:02:00.1]} 33... Rc4 {[%clk 0:02:03.1]} 34. Be3 {[%clk 0:01:54.5]} 34... Rc3
{[%clk 0:01:52.4]} 35. a4 {[%clk 0:01:49.5]} 35... Ra3 {[%clk 0:01:51.2]} 36.
f4+ {[%clk 0:01:43.4]} 36... Ke4 {[%clk 0:01:45.8]} 37. Re6+ {[%clk 0:01:41]}
37... Kf5 {[%clk 0:01:44.9]} 38. Ra6 {[%clk 0:01:32.5]} 38... Ke4 {[%clk
0:01:43.8]} 39. Bc5 {[%clk 0:01:25.8]} 39... Rh3 {[%clk 0:01:39]} 40. Bg1 {[%clk
0:01:12]} 40... Kxf4 {[%clk 0:01:32.2]} 41. Rb6 {[%clk 0:01:07.8]} 41... Be5
{[%clk 0:01:15.4]} 42. Rb4+ {[%clk 0:01:03.5]} 42... Kf5 {[%clk 0:01:14.1]} 43.
a5 {[%clk 0:00:58.8]} 43... Ra3 {[%clk 0:01:09.1]} 44. Rb5 {[%clk 0:00:57.4]}
44... Ke4 {[%clk 0:01:05.9]} 45. Rb4+ {[%clk 0:00:52.6]} 45... Kf5 {[%clk
0:01:03.3]} 46. Rb5 {[%clk 0:00:48]} 46... Ke4 {[%clk 0:01:01.9]} 47. Rb4+
{[%clk 0:00:47.1]} 47... Kf5 {[%clk 0:00:56.3]} 1/2-1/2

[Event "Live Chess"]
[Site "Chess.com"]
[Date "2024.06.02"]
[Round "-"]
[White "McCarthyStone"]
[Black "CheckThis4"]
[Result "1/2-1/2"]
[WhiteElo "2484"]
[BlackElo "2685"]
[TimeControl "300"]
[EndTime "6:06:56 PDT"]
[Termination "Game drawn by agreement"]

1. b3 {[%clk 0:04:57.4]} 1... d5 {[%clk 0:04:55.9]} 2. Bb2 {[%clk 0:04:57.3]}
2... Nf6 {[%clk 0:04:53.9]} 3. Nf3 {[%clk 0:04:56.5]} 3... g6 {[%clk 0:04:52.6]}
4. g3 {[%clk 0:04:55]} 4... Bg7 {[%clk 0:04:51.7]} 5. Bg2 {[%clk 0:04:54.9]}
5... O-O {[%clk 0:04:50]} 6. O-O {[%clk 0:04:54.6]} 6... c5 {[%clk 0:04:48.5]}
7. d3 {[%clk 0:04:50.3]} 7... Nc6 {[%clk 0:04:47.6]} 8. Ne5 {[%clk 0:04:49.5]}
8... Nxe5 {[%clk 0:04:42.4]} 9. Bxe5 {[%clk 0:04:49.4]} 9... Be6 {[%clk
0:04:39.8]} 10. c4 {[%clk 0:04:39.9]} 10... Qd7 {[%clk 0:04:34.8]} 11. Nd2
{[%clk 0:04:37.2]} 11... Bh3 {[%clk 0:04:26.6]} 12. Nf3 {[%clk 0:04:36.5]} 12...
Bxg2 {[%clk 0:04:24.1]} 13. Kxg2 {[%clk 0:04:36.4]} 13... Rad8 {[%clk
0:04:19.6]} 14. Qc2 {[%clk 0:04:34.7]} 14... b6 {[%clk 0:04:17.7]} 15. Rfc1
{[%clk 0:04:02]} 15... d4 {[%clk 0:04:09.3]} 16. b4 {[%clk 0:03:58.7]} 16... Bh6
{[%clk 0:04:03.9]} 17. Rcb1 {[%clk 0:03:48.4]} 17... Ng4 {[%clk 0:03:59.8]} 18.
bxc5 {[%clk 0:03:44.3]} 18... bxc5 {[%clk 0:03:55.5]} 19. h3 {[%clk 0:03:38.9]}
19... Nxe5 {[%clk 0:03:40.5]} 20. Nxe5 {[%clk 0:03:38.8]} 20... Qe6 {[%clk
0:03:35.8]} 21. Nf3 {[%clk 0:03:21.9]} 21... Rb8 {[%clk 0:03:29]} 1/2-1/2

[Event "Live Chess"]
[Site "Chess.com"]
[Date "2024.06.02"]
[Round "-"]
[White "SavagePawn7"]
[Black "Victor_Bondar"]
[Result "0-1"]
[WhiteElo "678"]
[BlackElo "1470"]
[TimeControl "300"]
[EndTime "6:07:06 PDT"]
[Termination "Victor_Bondar won on time"]

1. e4 {[%clk 0:04:53.4]} 1... d5 {[%clk 0:04:58.6]} 2. exd5 {[%clk 0:04:51]}
2... Qxd5 {[%clk 0:04:57.6]} 3. Nc3 {[%clk 0:04:49]} 3... Qa5 {[%clk 0:04:57.1]}
4. Nf3 {[%clk 0:04:44.9]} 4... Nf6 {[%clk 0:04:56.5]} 5. d4 {[%clk 0:04:36.4]}
5... Bg4 {[%clk 0:04:55.7]} 6. Be2 {[%clk 0:04:33.5]} 6... c6 {[%clk 0:04:54.3]}
7. h3 {[%clk 0:04:31.8]} 7... Bf5 {[%clk 0:04:52.4]} 8. Bd3 {[%clk 0:04:20.4]}
8... Bg6 {[%clk 0:04:49]} 9. O-O {[%clk 0:04:17.3]} 9... e6 {[%clk 0:04:48]} 10.
a3 {[%clk 0:03:50.1]} 10... Bd6 {[%clk 0:04:39]} 11. Bg5 {[%clk 0:03:38.3]}
11... Qc7 {[%clk 0:04:30]} 12. Ne5 {[%clk 0:02:50]} 12... Nbd7 {[%clk
0:04:13.9]} 13. Nxg6 {[%clk 0:02:38.5]} 13... hxg6 {[%clk 0:04:10]} 14. Ne4
{[%clk 0:02:19.9]} 14... Bh2+ {[%clk 0:03:51.5]} 15. Kh1 {[%clk 0:02:16.2]}
15... Bf4 {[%clk 0:03:49.2]} 16. Bxf4 {[%clk 0:02:10]} 16... Qxf4 {[%clk
0:03:46.9]} 17. Nxf6+ {[%clk 0:02:03.4]} 17... Nxf6 {[%clk 0:03:40.4]} 18. Kg1
{[%clk 0:01:26.6]} 18... O-O-O {[%clk 0:03:00.3]} 19. c3 {[%clk 0:01:15.8]}
19... e5 {[%clk 0:02:40.7]} 20. g3 {[%clk 0:00:50.2]} 20... Qh6 {[%clk
0:02:35.4]} 21. h4 {[%clk 0:00:41.6]} 21... e4 {[%clk 0:02:34.9]} 22. Bc2 {[%clk
0:00:32.8]} 22... g5 {[%clk 0:02:31.2]} 23. f3 {[%clk 0:00:22.8]} 23... gxh4
{[%clk 0:02:13.5]} 24. g4 {[%clk 0:00:18.5]} 24... Qf4 {[%clk 0:01:45.8]} 25.
fxe4 {[%clk 0:00:11.2]} 25... Qg3+ {[%clk 0:01:39.3]} 26. Kh1 {[%clk 0:00:06.8]}
26... Qh3+ {[%clk 0:01:38.3]} 27. Kg1 {[%clk 0:00:05.1]} 27... Nxg4 {[%clk
0:01:28.5]} 0-1

[Event "Live Chess"]
[Site "Chess.com"]
[Date "2024.06.02"]
[Round "-"]
[White "bobby_jamesFischer86"]
[Black "megabusyman"]
[Result "0-1"]
[WhiteElo "1631"]
[BlackElo "1877"]
[TimeControl "300"]
[EndTime "6:07:19 PDT"]
[Termination "megabusyman won by checkmate"]

1. d4 {[%clk 0:04:57.7]} 1... d5 {[%clk 0:04:58.6]} 2. c4 {[%clk 0:04:57.2]}
2... Nf6 {[%clk 0:04:56.5]} 3. Nc3 {[%clk 0:04:56.7]} 3... e6 {[%clk 0:04:52.8]}
4. e3 {[%clk 0:04:56.1]} 4... Bb4 {[%clk 0:04:49.2]} 5. cxd5 {[%clk 0:04:55.3]}
5... exd5 {[%clk 0:04:45.1]} 6. a3 {[%clk 0:04:54.1]} 6... Bxc3+ {[%clk
0:04:38.8]} 7. bxc3 {[%clk 0:04:52.6]} 7... c6 {[%clk 0:04:36.6]} 8. c4 {[%clk
0:04:51.7]} 8... Be6 {[%clk 0:04:29.7]} 9. cxd5 {[%clk 0:04:49.1]} 9... Nxd5
{[%clk 0:04:19.4]} 10. Nf3 {[%clk 0:04:37.3]} 10... O-O {[%clk 0:04:13]} 11. Qc2
{[%clk 0:04:34]} 11... Nd7 {[%clk 0:03:51.9]} 12. Bd3 {[%clk 0:04:32]} 12... h6
{[%clk 0:03:32.4]} 13. O-O {[%clk 0:04:29.4]} 13... c5 {[%clk 0:02:58.4]} 14.
Bb2 {[%clk 0:04:24.3]} 14... Rc8 {[%clk 0:02:51.8]} 15. Qe2 {[%clk 0:04:16.5]}
15... N5b6 {[%clk 0:02:08.7]} 16. dxc5 {[%clk 0:03:36.3]} 16... Nxc5 {[%clk
0:02:08.6]} 17. Bc2 {[%clk 0:02:55.9]} 17... Bc4 {[%clk 0:02:05.2]} 18. Qd1
{[%clk 0:02:30.8]} 18... Bxf1 {[%clk 0:01:59.7]} 19. Qxf1 {[%clk 0:02:30.2]}
19... Nca4 {[%clk 0:01:37.5]} 20. Rd1 {[%clk 0:02:04.8]} 20... Qe7 {[%clk
0:01:24.2]} 21. Bxa4 {[%clk 0:01:56.8]} 21... Nxa4 {[%clk 0:01:24.1]} 22. Bc1
{[%clk 0:01:51.1]} 22... Nc3 {[%clk 0:01:21.4]} 23. Rd4 {[%clk 0:01:37.5]} 23...
Rfd8 {[%clk 0:00:49.9]} 24. Bb2 {[%clk 0:01:28.5]} 24... Rxd4 {[%clk 0:00:48.3]}
25. Nxd4 {[%clk 0:01:25.9]} 25... Qc5 {[%clk 0:00:46.8]} 26. h3 {[%clk
0:01:17.3]} 26... Qc4 {[%clk 0:00:45.6]} 27. Qa1 {[%clk 0:01:06.1]} 27... Na4
{[%clk 0:00:38.3]} 28. Kh2 {[%clk 0:00:47.8]} 28... Nxb2 {[%clk 0:00:36.8]} 29.
Qxb2 {[%clk 0:00:46.1]} 29... b6 {[%clk 0:00:36.1]} 30. Nb5 {[%clk 0:00:31.7]}
30... Qc6 {[%clk 0:00:27.5]} 31. g3 {[%clk 0:00:23]} 31... Qc2 {[%clk
0:00:22.8]} 32. Qd4 {[%clk 0:00:12]} 32... Qxf2+ {[%clk 0:00:21.1]} 33. Kh1
{[%clk 0:00:10.8]} 33... Rc1+ {[%clk 0:00:20.6]} 34. Qd1 {[%clk 0:00:07.7]}
34... Rxd1# {[%clk 0:00:20.5]} 0-1

[Event "Live Chess"]
[Site "Chess.com"]
[Date "2024.06.02"]
[Round "-"]
[White "Dhaydon19"]
[Black "nitrofish07"]
[Result "1-0"]
[WhiteElo "2654"]
[BlackElo "2061"]
[TimeControl "300"]
[EndTime "6:07:19 PDT"]
[Termination "Dhaydon19 won by resignation"]

1. Nf3 {[%clk 0:04:57.7]} 1... d5 {[%clk 0:04:59]} 2. e3 {[%clk 0:04:57.3]} 2...
Nf6 {[%clk 0:04:58.3]} 3. b3 {[%clk 0:04:57]} 3... c6 {[%clk 0:04:56.7]} 4. Bb2
{[%clk 0:04:56.7]} 4... Bg4 {[%clk 0:04:54.2]} 5. Be2 {[%clk 0:04:56.1]} 5... e6
{[%clk 0:04:52.2]} 6. O-O {[%clk 0:04:55.5]} 6... Be7 {[%clk 0:04:51.1]} 7. c4
{[%clk 0:04:54.5]} 7... O-O {[%clk 0:04:50.1]} 8. Nc3 {[%clk 0:04:52.9]} 8...
Nbd7 {[%clk 0:04:48.5]} 9. h3 {[%clk 0:04:51.8]} 9... Bh5 {[%clk 0:04:47.1]} 10.
d4 {[%clk 0:04:51.1]} 10... a5 {[%clk 0:04:46]} 11. Rc1 {[%clk 0:04:49.6]} 11...
Rc8 {[%clk 0:04:42.2]} 12. Na4 {[%clk 0:04:47.4]} 12... Re8 {[%clk 0:04:38.3]}
13. Ne5 {[%clk 0:04:45.1]} 13... Bxe2 {[%clk 0:04:37]} 14. Qxe2 {[%clk
0:04:43.6]} 14... Nxe5 {[%clk 0:04:22.7]} 15. dxe5 {[%clk 0:04:42.6]} 15... Ne4
{[%clk 0:04:22.6]} 16. Rfd1 {[%clk 0:04:41.1]} 16... Qc7 {[%clk 0:04:15.3]} 17.
Qg4 {[%clk 0:04:30.5]} 17... Nc5 {[%clk 0:03:35.5]} 18. Nxc5 {[%clk 0:04:22.4]}
18... Bxc5 {[%clk 0:03:34.6]} 19. cxd5 {[%clk 0:04:21.7]} 19... cxd5 {[%clk
0:03:34.5]} 20. Rc2 {[%clk 0:04:09.6]} 20... Qd7 {[%clk 0:03:22.2]} 21. Rdc1
{[%clk 0:04:06.3]} 21... Bf8 {[%clk 0:03:21.1]} 22. Qa4 {[%clk 0:03:58.3]} 22...
Qxa4 {[%clk 0:02:55.5]} 23. bxa4 {[%clk 0:03:52.9]} 23... Rxc2 {[%clk
0:02:29.4]} 24. Rxc2 {[%clk 0:03:51.4]} 24... Rb8 {[%clk 0:02:28.3]} 25. Bd4
{[%clk 0:03:48.1]} 25... b5 {[%clk 0:02:04.6]} 26. axb5 {[%clk 0:03:45.2]} 26...
Rxb5 {[%clk 0:02:04.5]} 27. Rc8 {[%clk 0:03:44.1]} 27... g6 {[%clk 0:02:03.6]}
28. a4 {[%clk 0:03:39]} 28... Rb1+ {[%clk 0:01:56.5]} 29. Kh2 {[%clk 0:03:38.1]}
29... Kg7 {[%clk 0:01:54.1]} 30. Ra8 {[%clk 0:03:34.2]} 30... Bb4 {[%clk
0:01:40.3]} 31. Rc8 {[%clk 0:03:27.3]} 31... Be1 {[%clk 0:01:24.1]} 32. Rc2
{[%clk 0:03:21.5]} 32... Rb4 {[%clk 0:01:04.8]} 33. Re2 {[%clk 0:03:18.5]} 33...
Rb1 {[%clk 0:01:00.5]} 34. Ra2 {[%clk 0:03:15.2]} 34... h5 {[%clk 0:00:57.5]}
35. Kg3 {[%clk 0:03:14.2]} 35... Bb4 {[%clk 0:00:51]} 36. Kf3 {[%clk 0:03:12.4]}
36... Be7 {[%clk 0:00:35.7]} 37. Rb2 {[%clk 0:03:07.6]} 37... Ra1 {[%clk
0:00:32.6]} 38. Rb7 {[%clk 0:03:06.3]} 38... Bb4 {[%clk 0:00:29.4]} 39. Bxa1
{[%clk 0:03:04.5]} 1-0